[Event "Live Chess"]
[Site "Chess.com"]
[Date "2024.06.02"]
[Round "-"]
[White "nitrofish07"]
[Black "Mikhail_Golubev"]
[Result "0-1"]
[WhiteElo "2077"]
[BlackElo "2512"]
[TimeControl "300"]
[EndTime "2:45:04 PDT"]
[Termination "Mikhail_Golubev won by resignation"]

1. d4 {[%clk 0:04:58.3]} 1... Nf6 {[%clk 0:04:58.4]} 2. c4 {[%clk 0:04:57.7]}
2... d6 {[%clk 0:04:56.4]} 3. Nc3 {[%clk 0:04:56]} 3... g6 {[%clk 0:04:55.5]} 4.
e4 {[%clk 0:04:54.9]} 4... Bg7 {[%clk 0:04:55]} 5. h3 {[%clk 0:04:54.3]} 5...
O-O {[%clk 0:04:44.7]} 6. Be3 {[%clk 0:04:53.8]} 6... Nc6 {[%clk 0:04:43]} 7.
Qd2 {[%clk 0:04:51.2]} 7... e5 {[%clk 0:04:29.7]} 8. d5 {[%clk 0:04:49.5]} 8...
Nd4 {[%clk 0:04:28.9]} 9. Nge2 {[%clk 0:04:47.2]} 9... c5 {[%clk 0:04:16.1]} 10.
dxc6 {[%clk 0:04:42]} 10... bxc6 {[%clk 0:04:16]} 11. Nxd4 {[%clk 0:04:39.8]}
11... exd4 {[%clk 0:04:15.9]} 12. Bxd4 {[%clk 0:04:39.6]} 12... Re8 {[%clk
0:04:15.2]} 13. f3 {[%clk 0:04:31.1]} 13... d5 {[%clk 0:03:59.6]} 14. cxd5
{[%clk 0:04:09.6]} 14... cxd5 {[%clk 0:03:59.5]} 15. Bxf6 {[%clk 0:04:06.3]}
15... Bxf6 {[%clk 0:03:50.7]} 16. Nxd5 {[%clk 0:04:03.4]} 16... Bh4+ {[%clk
0:03:48.1]} 17. Kd1 {[%clk 0:03:52.5]} 17... Bg5 {[%clk 0:03:22.8]} 18. Qc3
{[%clk 0:03:33]} 18... Be6 {[%clk 0:03:02.5]} 19. Bc4 {[%clk 0:01:36.7]} 19...
Rc8 {[%clk 0:03:00.6]} 20. Qd3 {[%clk 0:01:27.6]} 20... Qa5 {[%clk 0:02:33.7]}
21. b3 {[%clk 0:01:13.8]} 21... Bxd5 {[%clk 0:02:23.3]} 22. exd5 {[%clk
0:00:56.8]} 22... Re3 {[%clk 0:02:05.5]} 23. Qd2 {[%clk 0:00:50.8]} 23... Qxd2+
{[%clk 0:01:41.2]} 24. Kxd2 {[%clk 0:00:49.3]} 24... Rxb3+ {[%clk 0:01:39.3]}
25. Kd1 {[%clk 0:00:20.6]} 25... Rb2 {[%clk 0:01:31.6]} 26. Bb3 {[%clk
0:00:19.9]} 26... Rxg2 {[%clk 0:00:52.5]} 27. h4 {[%clk 0:00:18.4]} 27... Bf4
{[%clk 0:00:49.5]} 28. h5 {[%clk 0:00:18.3]} 28... Rd2+ {[%clk 0:00:35.5]} 29.
Ke1 {[%clk 0:00:17.3]} 29... Re8+ {[%clk 0:00:34.3]} 30. Kf1 {[%clk 0:00:16.5]}
30... Ree2 {[%clk 0:00:29.1]} 31. Bc4 {[%clk 0:00:10.5]} 31... Rf2+ {[%clk
0:00:25.6]} 32. Ke1 {[%clk 0:00:09.8]} 32... Bg3 {[%clk 0:00:20.5]} 33. Rg1
{[%clk 0:00:03.4]} 33... Rg2+ {[%clk 0:00:19.2]} 34. Kf1 {[%clk 0:00:02.4]}
34... Rdf2+ {[%clk 0:00:18.8]} 35. Ke1 {[%clk 0:00:01.6]} 35... Rxg1+ {[%clk
0:00:18.4]} 0-1

[Event "Live Chess"]
[Site "Chess.com"]
[Date "2024.06.02"]
[Round "-"]
[White "jk0110"]
[Black "JanMur7"]
[Result "0-1"]
[WhiteElo "1235"]
[BlackElo "2278"]
[TimeControl "300"]
[EndTime "2:45:19 PDT"]
[Termination "JanMur7 won by resignation"]

1. e4 {[%clk 0:04:58.6]} 1... g6 {[%clk 0:04:58.1]} 2. d4 {[%clk 0:04:56.5]}
2... Bg7 {[%clk 0:04:57.6]} 3. Nf3 {[%clk 0:04:54.9]} 3... c5 {[%clk 0:04:56.9]}
4. Bc4 {[%clk 0:04:51.8]} 4... cxd4 {[%clk 0:04:54.6]} 5. c3 {[%clk 0:04:47]}
5... dxc3 {[%clk 0:04:49.9]} 6. Nxc3 {[%clk 0:04:46.9]} 6... Nc6 {[%clk
0:04:42.7]} 7. Bf4 {[%clk 0:04:41.2]} 7... Nf6 {[%clk 0:04:35.2]} 8. Nb5 {[%clk
0:04:38.4]} 8... d6 {[%clk 0:04:32.6]} 9. O-O {[%clk 0:04:33.4]} 9... O-O {[%clk
0:04:30.9]} 10. Rc1 {[%clk 0:04:27.3]} 10... a6 {[%clk 0:04:21.5]} 11. Nbd4
{[%clk 0:04:23]} 11... Nxd4 {[%clk 0:04:18.7]} 12. Nxd4 {[%clk 0:04:21.5]} 12...
e5 {[%clk 0:04:17]} 0-1

[Event "Live Chess"]
[Site "Chess.com"]
[Date "2024.06.02"]
[Round "-"]
[White "TheSmoulderingMaster"]
[Black "upoe610"]
[Result "0-1"]
[WhiteElo "1780"]
[BlackElo "2147"]
[TimeControl "300"]
[EndTime "2:45:22 PDT"]
[Termination "upoe610 won by resignation"]

1. e4 {[%clk 0:04:57.4]} 1... e5 {[%clk 0:04:52.5]} 2. Nf3 {[%clk 0:04:55.8]}
2... Nc6 {[%clk 0:04:51]} 3. Bb5 {[%clk 0:04:54.7]} 3... a6 {[%clk 0:04:48.2]}
4. Ba4 {[%clk 0:04:53.3]} 4... Nf6 {[%clk 0:04:47.3]} 5. O-O {[%clk 0:04:48.7]}
5... Be7 {[%clk 0:04:46.1]} 6. d4 {[%clk 0:04:47.1]} 6... b5 {[%clk 0:04:43.9]}
7. dxe5 {[%clk 0:04:44.3]} 7... bxa4 {[%clk 0:04:41]} 8. exf6 {[%clk 0:04:43.2]}
8... Bxf6 {[%clk 0:04:40.9]} 9. e5 {[%clk 0:04:41.6]} 9... Be7 {[%clk
0:04:36.8]} 10. Nc3 {[%clk 0:04:39]} 10... a3 {[%clk 0:04:31.7]} 11. bxa3 {[%clk
0:04:34.3]} 11... O-O {[%clk 0:04:29.9]} 12. Nd5 {[%clk 0:04:32.5]} 12... Bb7
{[%clk 0:04:28.3]} 13. Bf4 {[%clk 0:04:28.7]} 13... Bc5 {[%clk 0:04:27.2]} 14.
e6 {[%clk 0:04:25.4]} 14... fxe6 {[%clk 0:04:24]} 15. Nxc7 {[%clk 0:04:21.4]}
15... Rxf4 {[%clk 0:04:22]} 16. Nxa8 {[%clk 0:04:19]} 16... Bxa8 {[%clk
0:04:19.3]} 17. Qd2 {[%clk 0:04:16.2]} 17... Rxf3 {[%clk 0:04:12.7]} 18. gxf3
{[%clk 0:04:10.8]} 18... Nd4 {[%clk 0:04:12]} 19. Qc3 {[%clk 0:03:54.8]} 0-1

[Event "Live Chess"]
[Site "Chess.com"]
[Date "2024.06.02"]
[Round "-"]
[White "seasidecastle27"]
[Black "chess5013"]
[Result "1-0"]
[WhiteElo "1909"]
[BlackElo "1300"]
[TimeControl "300"]
[EndTime "2:45:28 PDT"]
[Termination "seasidecastle27 won by checkmate"]

1. d4 {[%clk 0:04:56.7]} 1... d5 {[%clk 0:04:58.5]} 2. Nf3 {[%clk 0:04:55.9]}
2... Nf6 {[%clk 0:04:56.4]} 3. Bf4 {[%clk 0:04:55]} 3... c5 {[%clk 0:04:53.6]}
4. e3 {[%clk 0:04:54]} 4... cxd4 {[%clk 0:04:51.1]} 5. exd4 {[%clk 0:04:52.8]}
5... Nc6 {[%clk 0:04:50.1]} 6. c3 {[%clk 0:04:51.9]} 6... Bf5 {[%clk 0:04:46.4]}
7. Bd3 {[%clk 0:04:50.5]} 7... Bxd3 {[%clk 0:04:42.6]} 8. Qxd3 {[%clk
0:04:49.4]} 8... e6 {[%clk 0:04:42.1]} 9. Nbd2 {[%clk 0:04:48.4]} 9... Bd6
{[%clk 0:04:40.9]} 10. Bxd6 {[%clk 0:04:45.1]} 10... Qxd6 {[%clk 0:04:39.5]} 11.
O-O {[%clk 0:04:44.2]} 11... O-O {[%clk 0:04:38]} 12. Rfe1 {[%clk 0:04:43.2]}
12... Rfe8 {[%clk 0:04:35]} 13. Ne5 {[%clk 0:04:41.2]} 13... Nd7 {[%clk
0:04:25.7]} 14. f4 {[%clk 0:04:38.5]} 14... Ndxe5 {[%clk 0:04:12.2]} 15. fxe5
{[%clk 0:04:36.1]} 15... Qe7 {[%clk 0:04:11.2]} 16. Rf1 {[%clk 0:04:34.1]} 16...
Qg5 {[%clk 0:04:02.8]} 17. Rf3 {[%clk 0:04:31.3]} 17... Re7 {[%clk 0:03:59.2]}
18. Raf1 {[%clk 0:04:28.4]} 18... Rf8 {[%clk 0:03:48.8]} 19. Rg3 {[%clk
0:04:25.9]} 19... Qh6 {[%clk 0:03:44.6]} 20. Rff3 {[%clk 0:04:19.5]} 20... f6
{[%clk 0:03:34.6]} 21. exf6 {[%clk 0:03:57.3]} 21... Rxf6 {[%clk 0:03:32.1]} 22.
Rxf6 {[%clk 0:03:49]} 22... Qxf6 {[%clk 0:03:23.5]} 23. Rh3 {[%clk 0:03:43.7]}
23... g6 {[%clk 0:03:21.9]} 24. Rf3 {[%clk 0:03:38.3]} 24... Qg5 {[%clk
0:03:15.3]} 25. Qe2 {[%clk 0:03:33.9]} 25... Rf7 {[%clk 0:03:03.3]} 26. Qxe6
{[%clk 0:03:17.5]} 26... Nd8 {[%clk 0:02:40.7]} 27. Qe8+ {[%clk 0:02:53]} 27...
Kg7 {[%clk 0:02:37.2]} 28. Qe5+ {[%clk 0:02:51.4]} 28... Qxe5 {[%clk 0:02:29.2]}
29. dxe5 {[%clk 0:02:50.1]} 29... Nc6 {[%clk 0:02:12.5]} 30. e6 {[%clk
0:02:28.1]} 30... Rxf3 {[%clk 0:02:07.6]} 31. Nxf3 {[%clk 0:02:26.6]} 31... Kf6
{[%clk 0:02:03.2]} 32. Kf2 {[%clk 0:02:18.8]} 32... h6 {[%clk 0:01:59.3]} 33.
Ke3 {[%clk 0:02:09.2]} 33... Kxe6 {[%clk 0:01:58]} 34. Nd4+ {[%clk 0:02:07.7]}
34... Nxd4 {[%clk 0:01:53.7]} 35. Kxd4 {[%clk 0:02:06.2]} 35... Kd6 {[%clk
0:01:48.1]} 36. g4 {[%clk 0:02:03.7]} 36... g5 {[%clk 0:01:42.9]} 37. b4 {[%clk
0:01:59.5]} 37... b6 {[%clk 0:01:29.1]} 38. b5 {[%clk 0:01:52.5]} 38... Ke6
{[%clk 0:01:25.9]} 39. a4 {[%clk 0:01:47.9]} 39... Kd6 {[%clk 0:01:23.3]} 40. h3
{[%clk 0:01:38.5]} 40... Ke6 {[%clk 0:01:20.9]} 41. c4 {[%clk 0:01:36.5]} 41...
dxc4 {[%clk 0:01:08.9]} 42. Kxc4 {[%clk 0:01:34.7]} 42... Kd7 {[%clk 0:01:05.1]}
43. Kd5 {[%clk 0:01:33.2]} 43... Kc7 {[%clk 0:00:58.9]} 44. Ke6 {[%clk
0:01:30.3]} 44... Kc8 {[%clk 0:00:56.2]} 45. Kf7 {[%clk 0:01:29.2]} 45... Kd7
{[%clk 0:00:54]} 46. Kg6 {[%clk 0:01:28.5]} 46... Kd6 {[%clk 0:00:49.3]} 47.
Kxh6 {[%clk 0:01:27.7]} 47... Kc5 {[%clk 0:00:48.9]} 48. Kxg5 {[%clk 0:01:26.8]}
48... Kb4 {[%clk 0:00:48.6]} 49. h4 {[%clk 0:01:26.3]} 49... Kxa4 {[%clk
0:00:47.6]} 50. h5 {[%clk 0:01:25.7]} 50... Kxb5 {[%clk 0:00:47.2]} 51. h6
{[%clk 0:01:25]} 51... a5 {[%clk 0:00:46.6]} 52. h7 {[%clk 0:01:24.1]} 52... a4
{[%clk 0:00:46.2]} 53. h8=Q {[%clk 0:01:22.8]} 53... a3 {[%clk 0:00:45.8]} 54.
Qc3 {[%clk 0:01:17.3]} 54... Ka4 {[%clk 0:00:44.1]} 55. Kf5 {[%clk 0:01:14.3]}
55... b5 {[%clk 0:00:42.6]} 56. g5 {[%clk 0:01:11.1]} 56... b4 {[%clk 0:00:42]}
57. Qc4 {[%clk 0:01:07]} 57... a2 {[%clk 0:00:39.6]} 58. Qxa2+ {[%clk
0:01:05.6]} 58... Kb5 {[%clk 0:00:39.2]} 59. g6 {[%clk 0:01:04]} 59... Kb6
{[%clk 0:00:37.6]} 60. g7 {[%clk 0:01:03.2]} 60... Kc7 {[%clk 0:00:37.2]} 61.
g8=Q {[%clk 0:01:02]} 61... b3 {[%clk 0:00:36.8]} 62. Qaxb3 {[%clk 0:01:00.7]}
62... Kd7 {[%clk 0:00:35.4]} 63. Qb7+ {[%clk 0:00:58.7]} 63... Kd6 {[%clk
0:00:34.4]} 64. Qe6+ {[%clk 0:00:57.3]} 64... Kc5 {[%clk 0:00:33.5]} 65. Qec6+
{[%clk 0:00:56.1]} 65... Kd4 {[%clk 0:00:32.7]} 66. Qbd7+ {[%clk 0:00:55]} 66...
Ke3 {[%clk 0:00:32]} 67. Qce6+ {[%clk 0:00:54.1]} 67... Kf2 {[%clk 0:00:31.2]}
68. Qd3 {[%clk 0:00:52.4]} 68... Kg2 {[%clk 0:00:30]} 69. Qee2+ {[%clk
0:00:51.1]} 69... Kh1 {[%clk 0:00:29.5]} 70. Qdd1# {[%clk 0:00:49.9]} 1-0

[Event "Live Chess"]
[Site "Chess.com"]
[Date "2024.06.02"]
[Round "-"]
[White "MasterCaptainHaddock"]
[Black "MagnersCarlsberg2870"]
[Result "1/2-1/2"]
[WhiteElo "1816"]
[BlackElo "1808"]
[TimeControl "300"]
[EndTime "2:45:43 PDT"]
[Termination "Game drawn by agreement"]

1. e4 {[%clk 0:04:58.8]} 1... e5 {[%clk 0:04:58.3]} 2. Nf3 {[%clk 0:04:56.8]}
2... Nf6 {[%clk 0:04:53.1]} 3. Bc4 {[%clk 0:04:53.8]} 3... Nc6 {[%clk
0:04:39.8]} 4. d3 {[%clk 0:04:29.4]} 4... Bc5 {[%clk 0:04:35]} 5. c3 {[%clk
0:04:28.2]} 5... d6 {[%clk 0:04:33.6]} 6. h3 {[%clk 0:04:27.1]} 6... h6 {[%clk
0:04:31.8]} 7. a4 {[%clk 0:04:25.1]} 7... a5 {[%clk 0:04:28.1]} 8. Nbd2 {[%clk
0:04:20.5]} 8... Be6 {[%clk 0:04:24.5]} 9. Bxe6 {[%clk 0:04:18.9]} 9... fxe6
{[%clk 0:04:23.6]} 10. Qb3 {[%clk 0:04:16.7]} 10... Qd7 {[%clk 0:04:18.1]} 11.
Nf1 {[%clk 0:04:07.6]} 11... Rb8 {[%clk 0:04:14]} 12. Ng3 {[%clk 0:03:47.3]}
12... O-O {[%clk 0:04:11.9]} 13. O-O {[%clk 0:03:43.3]} 13... d5 {[%clk
0:04:07.9]} 14. exd5 {[%clk 0:03:31.4]} 14... exd5 {[%clk 0:04:06.6]} 15. Re1
{[%clk 0:03:25.4]} 15... Rfe8 {[%clk 0:04:01.7]} 16. Qc2 {[%clk 0:03:03.4]}
16... Ba7 {[%clk 0:03:44]} 17. Be3 {[%clk 0:02:52.5]} 17... Bxe3 {[%clk
0:03:40.7]} 18. fxe3 {[%clk 0:02:52.4]} 18... e4 {[%clk 0:03:36.2]} 19. dxe4
{[%clk 0:02:50.9]} 19... dxe4 {[%clk 0:03:31]} 20. Rad1 {[%clk 0:02:48.3]} 20...
Qf7 {[%clk 0:03:17]} 21. Nd4 {[%clk 0:02:46.2]} 1/2-1/2

[Event "Live Chess"]
[Site "Chess.com"]
[Date "2024.06.02"]
[Round "-"]
[White "AlanBstard10"]
[Black "Tatarinov_Maxim"]
[Result "0-1"]
[WhiteElo "1233"]
[BlackElo "2298"]
[TimeControl "300"]
[EndTime "2:46:11 PDT"]
[Termination "Tatarinov_Maxim won by resignation"]

1. d4 {[%clk 0:04:57.2]} 1... Nf6 {[%clk 0:04:57.9]} 2. Bg5 {[%clk 0:04:56]}
2... Ne4 {[%clk 0:04:56.6]} 3. h4 {[%clk 0:04:53.9]} 3... Nxg5 {[%clk
0:04:54.3]} 4. hxg5 {[%clk 0:04:53.1]} 4... e6 {[%clk 0:04:53.8]} 5. Nf3 {[%clk
0:04:49.5]} 5... c5 {[%clk 0:04:51.4]} 6. c3 {[%clk 0:04:47.8]} 6... cxd4 {[%clk
0:04:42.6]} 7. cxd4 {[%clk 0:04:45.2]} 7... Qb6 {[%clk 0:04:40.6]} 8. b3 {[%clk
0:04:42.1]} 8... Bb4+ {[%clk 0:04:36.7]} 9. Nbd2 {[%clk 0:04:39.6]} 9... Nc6
{[%clk 0:04:35.7]} 10. e3 {[%clk 0:04:33.6]} 10... d5 {[%clk 0:04:20.4]} 11. Be2
{[%clk 0:04:32.6]} 11... Bd7 {[%clk 0:04:15.5]} 12. Rc1 {[%clk 0:04:27.2]} 12...
Rc8 {[%clk 0:04:14.4]} 13. O-O {[%clk 0:04:21.6]} 13... Ne7 {[%clk 0:04:10.4]}
14. Rxc8+ {[%clk 0:04:19.2]} 14... Nxc8 {[%clk 0:04:06.5]} 15. Ne5 {[%clk
0:04:11.9]} 15... Bb5 {[%clk 0:03:59.9]} 16. Bxb5+ {[%clk 0:04:08.7]} 16... Qxb5
{[%clk 0:03:57.8]} 17. Ndf3 {[%clk 0:04:00.7]} 17... O-O {[%clk 0:03:55.3]} 18.
Kh2 {[%clk 0:03:50.8]} 18... Be7 {[%clk 0:03:47.4]} 19. Kg3 {[%clk 0:03:47.7]}
19... Nd6 {[%clk 0:03:46.6]} 20. Rh1 {[%clk 0:03:46.4]} 20... Ne4+ {[%clk
0:03:45.6]} 21. Kh2 {[%clk 0:03:41.7]} 21... Nxf2 {[%clk 0:03:44.1]} 22. Qf1
{[%clk 0:03:23.8]} 22... Qxf1 {[%clk 0:03:41.7]} 23. Rxf1 {[%clk 0:03:22.7]}
23... Ne4 {[%clk 0:03:41.6]} 24. Rd1 {[%clk 0:03:03.4]} 24... Rc8 {[%clk
0:03:37.2]} 25. Nd2 {[%clk 0:03:00.3]} 25... Nxd2 {[%clk 0:03:30.4]} 26. Rxd2
{[%clk 0:02:59.2]} 26... Bxg5 {[%clk 0:03:30.3]} 27. Nf3 {[%clk 0:02:55.8]}
27... Bxe3 {[%clk 0:03:27.9]} 28. Re2 {[%clk 0:02:55.5]} 28... Bf4+ {[%clk
0:03:26.7]} 29. g3 {[%clk 0:02:53.7]} 29... Bd6 {[%clk 0:03:24.9]} 30. Ng5
{[%clk 0:02:49.2]} 30... h6 {[%clk 0:03:23]} 31. Nf3 {[%clk 0:02:46.3]} 31...
Kf8 {[%clk 0:03:22.4]} 32. Nd2 {[%clk 0:02:39.3]} 32... Rc2 {[%clk 0:03:18.2]}
33. Kg2 {[%clk 0:02:30.1]} 33... Bb4 {[%clk 0:03:15.7]} 34. Kf3 {[%clk
0:02:28.1]} 34... Rxd2 {[%clk 0:03:14.3]} 0-1

[Event "Live Chess"]
[Site "Chess.com"]
[Date "2024.06.02"]
[Round "-"]
[White "Brooms1989"]
[Black "uselessduffer"]
[Result "0-1"]
[WhiteElo "1187"]
[BlackElo "2389"]
[TimeControl "300"]
[EndTime "2:46:19 PDT"]
[Termination "uselessduffer won by resignation"]

1. e4 {[%clk 0:04:55.6]} 1... c5 {[%clk 0:04:59.4]} 2. Be2 {[%clk 0:04:53.4]}
2... Nc6 {[%clk 0:04:57.7]} 3. d3 {[%clk 0:04:50.2]} 3... g6 {[%clk 0:04:55.4]}
4. f4 {[%clk 0:04:49.5]} 4... Bg7 {[%clk 0:04:54.4]} 5. Nf3 {[%clk 0:04:48.9]}
5... d5 {[%clk 0:04:53.5]} 6. O-O {[%clk 0:04:47]} 6... Nf6 {[%clk 0:04:43.4]}
7. e5 {[%clk 0:04:45.3]} 7... Ng4 {[%clk 0:04:42.2]} 8. h3 {[%clk 0:04:41.6]}
8... Nh6 {[%clk 0:04:40.8]} 9. Qe1 {[%clk 0:04:32.2]} 9... O-O {[%clk
0:04:34.3]} 10. Qh4 {[%clk 0:04:27.9]} 10... Nf5 {[%clk 0:04:27.9]} 11. Qf2
{[%clk 0:04:26.5]} 11... f6 {[%clk 0:04:14.3]} 12. g4 {[%clk 0:04:21.4]} 12...
Nfd4 {[%clk 0:04:11.4]} 13. Nxd4 {[%clk 0:04:17.9]} 13... Nxd4 {[%clk
0:04:09.4]} 14. Na3 {[%clk 0:04:11]} 14... fxe5 {[%clk 0:04:07]} 15. c3 {[%clk
0:03:59.8]} 15... Nxe2+ {[%clk 0:03:12.5]} 16. Qxe2 {[%clk 0:03:53.7]} 16... Qd6
{[%clk 0:02:57.3]} 17. fxe5 {[%clk 0:03:27.2]} 17... Rxf1+ {[%clk 0:02:51.3]}
18. Qxf1 {[%clk 0:03:19.3]} 18... Qxe5 {[%clk 0:02:45.5]} 19. Nc2 {[%clk
0:03:12.7]} 19... Qg3+ {[%clk 0:02:16.4]} 20. Kh1 {[%clk 0:03:00.4]} 20... Be5
{[%clk 0:02:14]} 21. Qe2 {[%clk 0:02:56.2]} 21... Qxh3+ {[%clk 0:02:10.1]} 0-1

[Event "Live Chess"]
[Site "Chess.com"]
[Date "2024.06.02"]
[Round "-"]
[White "Frankie_Badacsonyi"]
[Black "Crowded_House"]
[Result "1-0"]
[WhiteElo "2408"]
[BlackElo "1673"]
[TimeControl "300"]
[EndTime "2:46:42 PDT"]
[Termination "Frankie_Badacsonyi won by resignation"]

1. e4 {[%clk 0:04:58]} 1... e6 {[%clk 0:04:58.1]} 2. d4 {[%clk 0:04:56.7]} 2...
d5 {[%clk 0:04:57.5]} 3. Nd2 {[%clk 0:04:54]} 3... dxe4 {[%clk 0:04:55.8]} 4.
Nxe4 {[%clk 0:04:53.9]} 4... Bd7 {[%clk 0:04:55]} 5. Ne2 {[%clk 0:04:49.1]} 5...
Bc6 {[%clk 0:04:53.8]} 6. N2g3 {[%clk 0:04:48.4]} 6... Nd7 {[%clk 0:04:51.1]} 7.
c3 {[%clk 0:04:47]} 7... Ngf6 {[%clk 0:04:50.4]} 8. Bd3 {[%clk 0:04:45.7]} 8...
Nxe4 {[%clk 0:04:47.8]} 9. Nxe4 {[%clk 0:04:44.5]} 9... Nf6 {[%clk 0:04:45.4]}
10. Qe2 {[%clk 0:04:43.8]} 10... Nxe4 {[%clk 0:04:42.3]} 11. Bxe4 {[%clk
0:04:43.7]} 11... Bxe4 {[%clk 0:04:40.7]} 12. Qxe4 {[%clk 0:04:43.6]} 12... c6
{[%clk 0:04:38.4]} 13. O-O {[%clk 0:04:42.7]} 13... Qd5 {[%clk 0:04:37]} 14. Qe2
{[%clk 0:04:40.5]} 14... Bd6 {[%clk 0:04:28.5]} 15. Be3 {[%clk 0:04:27.3]} 15...
O-O {[%clk 0:04:26.4]} 16. a4 {[%clk 0:04:25]} 16... Rfc8 {[%clk 0:04:21.4]} 17.
Rfd1 {[%clk 0:04:22.1]} 17... Qf5 {[%clk 0:04:10]} 18. Qd3 {[%clk 0:04:16.9]}
18... Qxd3 {[%clk 0:04:07.8]} 19. Rxd3 {[%clk 0:04:16.8]} 19... Rd8 {[%clk
0:04:00.6]} 20. Rad1 {[%clk 0:04:15.4]} 20... Be7 {[%clk 0:03:55.5]} 21. Kf1
{[%clk 0:04:10.4]} 21... Bf6 {[%clk 0:03:54.6]} 22. Ke2 {[%clk 0:04:09.2]} 22...
Rd7 {[%clk 0:03:50.1]} 23. f4 {[%clk 0:04:00.1]} 23... a6 {[%clk 0:03:48.5]} 24.
g3 {[%clk 0:03:57.2]} 24... Rad8 {[%clk 0:03:46.3]} 25. R3d2 {[%clk 0:03:52]}
25... g6 {[%clk 0:03:45]} 26. Kf3 {[%clk 0:03:50.7]} 26... h5 {[%clk 0:03:43.8]}
27. h3 {[%clk 0:03:49.7]} 27... Kg7 {[%clk 0:03:41.5]} 28. Ke2 {[%clk 0:03:41]}
28... b5 {[%clk 0:03:32.2]} 29. axb5 {[%clk 0:03:38.7]} 29... cxb5 {[%clk
0:03:24]} 30. Ra1 {[%clk 0:03:36.3]} 30... Rd6 {[%clk 0:03:21.3]} 31. Rdd1
{[%clk 0:03:33]} 31... Rc8 {[%clk 0:03:19.6]} 32. Ra2 {[%clk 0:03:20.8]} 32...
Rcc6 {[%clk 0:03:18.5]} 33. Kd3 {[%clk 0:03:13.3]} 33... Bd8 {[%clk 0:03:11.7]}
34. Raa1 {[%clk 0:03:06]} 34... f6 {[%clk 0:03:04.3]} 35. g4 {[%clk 0:03:03.9]}
35... hxg4 {[%clk 0:03:02.3]} 36. hxg4 {[%clk 0:03:03.8]} 36... Bc7 {[%clk
0:02:43.3]} 37. Ke2 {[%clk 0:02:53.1]} 37... Rd8 {[%clk 0:02:42.2]} 38. Rh1
{[%clk 0:02:49.8]} 38... Rh8 {[%clk 0:02:41.4]} 39. Rxh8 {[%clk 0:02:46.1]}
39... Kxh8 {[%clk 0:02:40.4]} 40. Rh1+ {[%clk 0:02:42.6]} 40... Kg7 {[%clk
0:02:39.2]} 41. Kd3 {[%clk 0:02:36.7]} 41... Rd6 {[%clk 0:02:29.3]} 42. Ke2
{[%clk 0:02:21.6]} 42... e5 {[%clk 0:02:24]} 43. dxe5 {[%clk 0:02:17.6]} 43...
fxe5 {[%clk 0:02:22.8]} 44. f5 {[%clk 0:02:16.9]} 44... gxf5 {[%clk 0:02:20.9]}
45. gxf5 {[%clk 0:02:16.8]} 45... Rf6 {[%clk 0:02:13.4]} 46. Rf1 {[%clk
0:02:11.1]} 46... Bb6 {[%clk 0:02:05.1]} 47. Bd2 {[%clk 0:01:59.1]} 47... Bc5
{[%clk 0:01:54.4]} 48. Bc1 {[%clk 0:01:52.5]} 48... Bb6 {[%clk 0:01:52.4]} 49.
Kd3 {[%clk 0:01:51]} 49... Bc5 {[%clk 0:01:50.1]} 50. Ke4 {[%clk 0:01:49.9]}
50... Be7 {[%clk 0:01:42.3]} 51. Kxe5 {[%clk 0:01:45.2]} 51... Bd6+ {[%clk
0:01:38.1]} 52. Ke4 {[%clk 0:01:43.7]} 52... a5 {[%clk 0:01:35.9]} 53. Be3
{[%clk 0:01:42.6]} 53... b4 {[%clk 0:01:34.8]} 54. Bd4 {[%clk 0:01:41.5]} 1-0

[Event "Live Chess"]
[Site "Chess.com"]
[Date "2024.06.02"]
[Round "-"]
[White "StoreySniper"]
[Black "CarmelJane"]
[Result "1-0"]
[WhiteElo "2522"]
[BlackElo "2057"]
[TimeControl "300"]
[EndTime "2:46:44 PDT"]
[Termination "StoreySniper won by checkmate"]

1. e4 {[%clk 0:04:57.8]} 1... c5 {[%clk 0:04:53.9]} 2. Nf3 {[%clk 0:04:56.5]}
2... e6 {[%clk 0:04:53.2]} 3. d4 {[%clk 0:04:54.8]} 3... cxd4 {[%clk 0:04:53.1]}
4. Nxd4 {[%clk 0:04:54.2]} 4... Nf6 {[%clk 0:04:52.6]} 5. Nc3 {[%clk 0:04:53]}
5... Nc6 {[%clk 0:04:52]} 6. Ndb5 {[%clk 0:04:50.6]} 6... Bc5 {[%clk 0:04:49.8]}
7. Nd6+ {[%clk 0:04:49]} 7... Ke7 {[%clk 0:04:48.4]} 8. Nxc8+ {[%clk 0:04:45.2]}
8... Qxc8 {[%clk 0:04:45.6]} 9. Bd3 {[%clk 0:04:44.6]} 9... a6 {[%clk
0:04:44.4]} 10. O-O {[%clk 0:04:42.7]} 10... Rd8 {[%clk 0:04:42.6]} 11. Kh1
{[%clk 0:04:39.2]} 11... Kf8 {[%clk 0:04:41.5]} 12. Bg5 {[%clk 0:04:37]} 12...
Be7 {[%clk 0:04:39.7]} 13. f4 {[%clk 0:04:35.5]} 13... h6 {[%clk 0:04:38.3]} 14.
Bxf6 {[%clk 0:04:22.8]} 14... Bxf6 {[%clk 0:04:38.2]} 15. e5 {[%clk 0:04:22]}
15... Be7 {[%clk 0:04:37]} 16. Qh5 {[%clk 0:04:17]} 16... d5 {[%clk 0:04:22.2]}
17. Rae1 {[%clk 0:04:07.8]} 17... Nd4 {[%clk 0:04:09.1]} 18. Ne2 {[%clk
0:03:57.3]} 18... Nf5 {[%clk 0:04:04.3]} 19. Qh3 {[%clk 0:03:43.9]} 19... d4
{[%clk 0:03:56.9]} 20. Bxf5 {[%clk 0:03:27.6]} 20... exf5 {[%clk 0:03:55.4]} 21.
Qd3 {[%clk 0:03:26]} 21... Qc5 {[%clk 0:03:31.1]} 22. Qxf5 {[%clk 0:03:18.7]}
22... Rac8 {[%clk 0:03:30.6]} 23. Qh7 {[%clk 0:03:10.9]} 23... Bh4 {[%clk
0:02:52.5]} 24. Ng3 {[%clk 0:02:46]} 24... Bxg3 {[%clk 0:02:49.6]} 25. hxg3
{[%clk 0:02:44.7]} 25... Qxc2 {[%clk 0:02:40.9]} 26. f5 {[%clk 0:02:40.9]} 26...
d3 {[%clk 0:01:40.7]} 27. f6 {[%clk 0:02:30]} 27... d2 {[%clk 0:01:30.1]} 28.
Qh8# {[%clk 0:02:26.9]} 1-0